bitfinex/quotes_SOLUSD_20250317
["timestamp","ask_amount","ask_price","bid_price","bid_amount"]
[1742196498237,24.06592349,129.05,129.02,312.063]
[1742196498560,24.06592349,129.05,129.03,20.0]
[1742196499031,24.06592349,129.05,129.02,0.063]
[1742196501228,7.6552,129.05,129.02,0.063]
[1742196501427,7.6552,129.05,129.02,312.063]
[1742196502233,24.06592349,129.05,129.02,312.063]
[1742196502932,7.6552,129.05,129.02,312.063]
[1742196503246,7.6552,129.05,129.02,7.8137]
[1742196503850,7.6552,129.05,129.02,24.22442349]
[1742196504228,1.5786,129.05,129.03,16.41072349]
[1742196505546,1.5786,129.05,129.02,27.1905]
[1742196505729,1.5786,129.05,129.02,7.8137]
[1742196505930,17.98932349,129.05,129.02,7.8137]
[1742196506147,17.98932349,129.05,129.02,319.8137]
[1742196506529,17.98932349,129.05,129.02,312.063]
[1742196507634,25.73832349,129.05,129.02,312.063]
[1742196507835,16.41072349,129.04,129.02,0.063]
[1742196510433,22.50802349,129.04,129.02,0.063]
[1742196510632,16.41072349,129.03,129.02,0.063]
[1742196510833,1.5178,129.02,128.97,7.7535]
[1742196511047,16.41072349,128.99,128.95,0.063]
[1742196512153,16.41072349,128.99,128.95,7.8176]
[1742196514033,16.41072349,128.99,128.95,319.8176]
[1742196514039,16.3620754,128.99,128.95,319.8176]
[1742196514851,16.41072349,129.0,128.95,319.8176]
[1742196516156,16.41072349,128.99,128.95,319.8176]
[1742196517154,16.41072349,129.0,128.95,336.22832349]
[1742196517548,16.41072349,129.0,128.95,319.8176]
[1742196517750,16.41072349,129.0,128.95,336.22832349]
[1742196518160,16.41072349,128.99,128.95,319.8176]
[1742196520061,1.5478,129.02,128.95,336.22832349]
[1742196520240,16.41072349,129.0,128.95,355.61562349]
[1742196520647,16.41072349,129.01,128.96,16.41072349]
[1742196521166,10.52391336,129.01,128.96,10.52391336]
[1742196522164,10.52391336,129.01,128.97,7.7537]
[1742196523461,1.5478,129.02,129.0,10.52391336]
[1742196524367,1.5478,129.02,129.01,7.7513]
[1742196525066,1.5478,129.02,129.01,18.27521336]
[1742196525256,1.5478,129.02,129.01,24.18225943]
[1742196525456,1.5478,129.02,129.01,7.7513]
[1742196526363,1.5478,129.02,129.01,319.7513]
[1742196527668,1.5478,129.02,129.01,7.7513]
[1742196528369,1.5478,129.02,128.99,43.56405943]
[1742196529572,1.5478,129.02,128.99,27.1331]
[1742196529771,1.5478,129.02,128.99,43.56405943]
[1742196530168,1.5478,129.02,128.99,24.18345943]
[1742196530370,17.97875943,129.02,128.98,7.7528]
[1742196530671,16.43095943,129.01,128.98,7.7528]
[1742196531666,16.43095943,129.01,128.99,0.063]
[1742196532244,16.43095943,129.0,128.99,0.063]
[1742196534973,24.18285943,129.0,128.99,0.063]
[1742196536654,24.18285943,129.0,128.95,0.063]
[1742196536655,48.54041886,129.0,128.95,0.063]
[1742196536965,16.43095943,128.97,128.95,0.063]
[1742196539278,24.18415943,128.98,128.95,0.063]
[1742196539956,16.43095943,128.97,128.95,0.063]
[1742196540672,18.05275943,128.96,128.95,0.063]
[1742196540876,1.6218,128.96,128.95,0.063]
[1742196544054,7.9047,129.0,128.95,16.49395943]
[1742196544261,1.5999,129.0,128.97,16.43095943]
[1742196544676,1.5999,129.0,128.98,16.43095943]
[1742196544877,1.5999,129.0,128.98,24.18375943]
[1742196547178,1.5999,129.0,128.98,312.0]
[1742196547980,1.5999,129.0,128.97,16.43095943]
[1742196548378,16.46095943,129.02,128.98,24.18405943]
[1742196548572,0.03,129.02,128.99,16.43095943]
[1742196548777,0.03,129.02,129.01,16.43095943]
[1742196550494,0.03,129.02,129.01,24.18225943]
[1742196550995,0.03,129.02,129.01,336.18225943]
[1742196551590,0.03,129.02,129.01,361.89623143]
[1742196552390,0.03,129.02,129.01,361.61190829]
[1742196554033,0.03,129.02,129.01,361.89623143]
[1742196554200,0.03,129.02,129.01,412.9014514]
[1742196554497,0.03,129.02,129.01,100.9014514]
[1742196555511,0.03,129.02,129.01,49.61190829]
[1742196555982,0.03,129.02,129.01,30.96225943]
[1742196560431,0.03,129.02,129.01,49.61190829]
[1742196560800,0.03,129.02,129.01,49.89623143]
[1742196563628,0.03,129.02,129.01,361.89623143]
[1742196565618,0.03,129.02,129.01,412.9014514]
[1742196569146,0.03,129.02,129.01,406.98132052]
[1742196574218,0.03,129.02,128.96,19.3856]
[1742196574433,0.03,129.02,128.97,10.51082855]
[1742196574731,0.03,129.02,128.97,29.16047741]
[1742196575232,10.54082855,129.02,128.97,36.91417741]
[1742196575426,12.16482855,129.01,128.96,18.26502855]
[1742196576437,1.654,129.01,128.96,18.26502855]
[1742196576839,1.654,129.01,128.96,7.7542]
[1742196577044,19.91632855,129.01,128.96,18.26502855]
[1742196577255,25.84923014,129.01,128.96,336.19793014]
[1742196579541,9.4055,129.01,128.97,16.44373014]
[1742196580118,9.4055,129.01,128.97,24.19733014]
[1742196580722,1.654,129.01,128.97,24.19733014]
[1742196582526,1.654,129.01,128.99,16.44373014]
[1742196584230,1.654,129.01,128.98,16.44373014]
[1742196584427,1.654,129.01,128.98,24.19663014]
[1742196585449,1.654,129.01,128.98,336.19663014]
[1742196585850,1.654,129.01,128.98,328.44373014]
[1742196586343,1.654,129.01,128.98,336.19673014]
[1742196589055,1.654,129.01,128.98,328.44373014]
[1742196589552,9.4053,129.01,128.98,312.0]
[1742196589938,9.4053,129.01,128.97,24.19743014]
[1742196590447,9.4053,129.01,128.97,16.44373014]
[1742196590745,25.84903014,129.01,128.96,16.50673014]
[1742196590946,16.44373014,129.0,128.96,0.063]
[1742196591138,16.44373014,129.0,128.97,20.063]
[1742196592554,24.19583014,129.0,128.97,20.063]
[1742196594253,7.7521,129.0,128.97,20.063]
[1742196595055,24.19583014,129.0,128.97,20.063]
[1742196596331,24.19583014,129.0,128.97,0.063]
[1742196596651,1.5917,128.98,128.97,0.063]
[1742196602259,7.7515,129.01,128.97,0.063]
[1742196602260,10.52722087,129.01,128.97,0.063]
[1742196602433,12.11892087,129.01,128.97,0.063]
[1742196602633,1.5917,129.01,128.98,10.52722087]
[1742196603358,1.5917,129.01,128.98,18.27992087]
[1742196603961,1.6217,129.01,128.98,18.27992087]
[1742196604560,1.6217,129.01,128.98,7.7527]
[1742196606441,1.6217,129.01,128.98,18.27992087]
[1742196606836,1.6217,129.01,128.98,7.7527]
[1742196608364,1.6217,129.01,128.97,330.34362087]
[1742196608742,19.90022087,129.01,128.97,0.063]
[1742196609062,19.90022087,129.01,128.97,7.8167]
[1742196609856,1.6217,129.01,128.99,10.52722087]
[1742196610485,1.6217,129.01,128.97,0.063]
[1742196610486,0.03,129.01,129.0,10.52722087]
[1742196611664,0.03,129.01,129.0,397.79765321]
[1742196612043,0.03,129.02,129.01,0.14216157]
[1742196612343,0.0001,129.02,129.01,10.66938244]
[1742196612745,0.0001,129.02,129.01,10.52722087]
[1742196612946,0.0001,129.02,129.01,29.17686973]
[1742196613265,0.0001,129.02,129.01,10.52722087]
[1742196613461,0.0001,129.02,129.0,65.51711997]
[1742196613766,0.0001,129.02,129.01,18.27852087]
[1742196614169,0.0001,129.02,129.0,7.7518]
[1742196615257,0.0001,129.02,129.0,18.27902087]
[1742196616548,0.0001,129.02,129.01,10.52722087]
[1742196618368,0.0001,129.02,129.01,18.27852087]
[1742196621371,0.0001,129.02,129.01,7.7513]
[1742196622967,0.0001,129.02,128.99,10.52722087]
[1742196623176,0.0001,129.02,128.98,322.52722087]
[1742196623468,0.0001,129.02,128.99,10.52722087]
[1742196623670,0.0001,129.02,129.0,10.52722087]
[1742196625679,0.0001,129.02,129.01,7.7513]
[1742196626878,0.0001,129.02,129.0,7.7517]
[1742196628675,0.0001,129.02,129.0,7.8147]
[1742196630779,0.0001,129.02,129.0,18.34192087]
[1742196631488,0.0001,129.02,129.01,10.52722087]
[1742196631956,0.0001,129.02,129.01,29.17686973]
[1742196632786,0.0001,129.02,129.01,36.92816973]
[1742196633865,0.0001,129.02,129.01,348.92816973]
[1742196635481,0.0001,129.02,129.01,330.27852087]
[1742196636270,0.0001,129.02,129.01,18.27852087]
[1742196639270,0.0001,129.02,129.01,330.27852087]
[1742196639961,0.0001,129.02,129.0,18.34172087]
[1742196642087,0.0001,129.02,129.01,10.52722087]
[1742196642981,0.0001,129.02,129.01,330.27852087]
[1742196646097,0.0001,129.02,129.01,18.27852087]
[1742196649179,0.0001,129.02,129.01,330.27852087]
[1742196652485,0.0001,129.02,129.01,319.7513]
[1742196652673,0.0001,129.02,129.01,312.0]
[1742196652874,0.0001,129.02,129.01,20.0]
[1742196656485,10.52732087,129.02,129.0,0.063]
[1742196660115,0.0001,129.02,129.0,0.063]
[1742196660284,0.0001,129.02,129.0,10.59022087]
[1742196660483,0.0001,129.02,129.0,0.063]
[1742196661296,0.0001,129.02,129.0,10.59022087]
[1742196662295,0.0001,129.02,129.0,0.063]
[1742196666924,10.52732087,129.02,129.0,0.063]
[1742196670816,18.27812087,129.02,129.0,0.063]
[1742196674226,10.52732087,129.02,129.0,0.063]
[1742196675498,0.0001,129.02,129.0,0.063]
[1742196678320,10.52722087,129.01,129.0,0.063]
[1742196678625,26.36632087,129.01,129.0,0.063]
[1742196678807,26.36632087,129.01,128.97,0.063]
[1742196678808,88.13782749,129.01,128.97,0.063]
[1742196679014,10.52722087,128.98,128.97,0.063]
[1742196680402,9.2929,129.01,128.97,10.59022087]
[1742196680833,19.82012087,129.01,128.97,0.063]
[1742196682524,10.52722087,128.98,128.97,0.063]
[1742196683724,10.81154401,128.98,128.97,0.063]
[1742196684220,9.2953,128.97,128.95,0.063]
[1742196684404,10.52722087,128.96,128.95,0.063]
[1742196686941,18.28152087,128.96,128.95,0.063]
[1742196687731,18.56584401,128.96,128.95,0.063]
[1742196689826,18.56584401,128.96,128.94,0.063]
[1742196690021,17.28722087,128.95,128.94,0.063]
[1742196690811,25.04212087,128.95,128.94,0.063]
[1742196697716,43.97609287,128.95,128.94,0.063]
[1742196699036,86.08497635,128.95,128.94,0.063]
[1742196700111,43.97609287,128.95,128.94,0.063]
[1742196700529,25.32644401,128.95,128.94,0.063]
[1742196700840,18.28212087,128.95,128.94,0.063]
[1742196703940,10.52722087,128.95,128.94,0.063]
[1742196704163,18.28212087,128.95,128.94,0.063]
[1742196714348,18.56644401,128.95,128.94,0.063]
[1742196716928,37.21609287,128.95,128.94,0.063]
[1742196717129,79.32497635,128.95,128.94,0.063]
[1742196717834,37.21609287,128.95,128.94,0.063]
[1742196721034,79.61609287,128.95,128.94,0.063]
[1742196721452,18.64964886,128.94,128.93,0.063]
[1742196721668,71.57007635,128.94,128.89,0.063]
[1742196721849,10.52722087,128.9,128.89,0.063]
[1742196723368,18.28492087,128.91,128.89,0.063]
[1742196723953,44.17866157,128.93,128.89,0.063]
[1742196723954,0.03,128.95,128.89,30.59022087]
[1742196724157,18.31212087,128.95,128.9,10.52722087]
[1742196724459,10.55722087,128.95,128.9,10.52722087]
[1742196724766,0.03,128.95,128.91,10.52722087]
[1742196725240,0.03,128.95,128.92,7.7567]
[1742196726839,0.03,128.95,128.92,18.28392087]
[1742196727138,0.03,128.95,128.92,330.28392087]
[1742196727538,0.03,128.95,128.92,18.28392087]
[1742196728059,0.03,128.95,128.94,10.52722087]
[1742196729865,0.03,128.95,128.93,11.39422087]
[1742196730165,0.03,128.95,128.93,18.28282087]
[1742196730650,0.03,128.95,128.93,330.28282087]
[1742196730856,0.03,128.95,128.92,18.28382087]
[1742196731164,0.03,128.95,128.92,7.7566]
[1742196732766,0.03,128.95,128.92,18.28382087]
[1742196734473,0.03,128.95,128.92,7.7566]
[1742196734681,10.52722087,128.96,128.91,14.2564]
[1742196734970,0.03,128.95,128.91,18.28432087]
[1742196736350,0.03,128.95,128.92,10.52722087]
[1742196737850,0.03,128.95,128.93,7.7561]
[1742196741846,0.03,128.95,128.94,10.52722087]
[1742196742547,0.03,128.95,128.93,18.28332087]
[1742196743644,0.03,128.95,128.93,330.28322087]
[1742196748375,0.03,128.95,128.92,18.28362087]
[1742196749762,0.03,128.95,128.93,10.52722087]
[1742196750072,0.03,128.95,128.92,18.28362087]
[1742196750871,0.03,128.95,128.93,10.52722087]
[1742196751173,0.03,128.95,128.94,10.52722087]
[1742196754077,0.03,128.95,128.94,18.28272087]
[1742196762489,0.03,128.95,128.94,330.28272087]
[1742196770001,0.03,128.95,128.94,18.34572087]
[1742196771875,0.03,128.95,128.94,0.063]
[1742196772992,0.03,128.95,128.94,7.8185]
[1742196774799,0.03,128.95,128.94,18.34572087]
[1742196778592,0.03,128.95,128.94,79.10425321]
[1742196778807,1.5504,129.01,128.97,10.52722087]
[1742196779797,1.5504,129.01,128.97,322.52722087]
[1742196780795,1.5504,129.01,128.97,330.28052087]
[1742196781183,1.5804,129.01,128.97,330.28052087]
[1742196782608,1.5804,129.01,128.97,18.28052087]
[1742196783318,1.5804,129.01,128.98,10.52722087]
[1742196783600,0.03,129.01,128.99,10.52722087]
[1742196783802,0.03,129.01,129.0,10.52722087]
[1742196784198,0.03,129.01,128.99,10.52722087]
[1742196785380,0.03,129.01,128.98,18.27982087]
[1742196785581,0.03,129.01,128.98,312.0]
[1742196785878,0.03,129.01,128.97,25.04082087]
[1742196785879,10.55722087,129.01,128.97,6.76]
[1742196786082,10.55722087,129.01,128.96,18.28122087]
[1742196786800,0.03,129.01,128.97,10.52722087]
[1742196787007,0.03,129.01,128.97,18.28072087]
[1742196790804,0.03,129.01,128.98,10.52722087]
[1742196791013,0.03,129.01,128.99,10.52722087]
[1742196791304,0.03,129.01,128.97,7.7535]
[1742196791305,0.03,129.01,129.0,30.52722087]
[1742196792708,0.03,129.01,129.0,38.27912087]
[1742196793905,0.03,129.01,129.0,350.27912087]
[1742196795493,0.03,129.01,128.98,6.74]
[1742196795698,0.03,129.01,128.98,14.4928]
[1742196796206,0.03,129.01,128.98,18.28002087]
[1742196797408,0.03,129.01,128.98,7.7528]
[1742196797706,0.03,129.01,128.97,18.28082087]
[1742196797905,0.03,129.01,128.97,10.52722087]
[1742196798105,10.55722087,129.01,128.96,18.28132087]
[1742196798611,10.55722087,129.01,128.96,330.28132087]
[1742196799095,0.03,129.01,128.97,10.52722087]
[1742196799686,7.7813,129.01,128.97,10.52722087]
[1742196799894,0.03,129.01,128.97,18.28082087]
[1742196809228,0.03,129.01,128.99,10.52722087]
[1742196809413,0.03,129.01,129.0,10.52722087]
[1742196810495,0.03,129.01,129.0,322.52722087]
[1742196811023,0.03,129.01,129.0,330.27912087]
[1742196811515,0.0001,129.01,129.0,330.56344401]
[1742196811721,0.0001,129.02,129.01,18.933972]
[1742196811914,0.0001,129.02,129.01,29.46119287]
[1742196813070,0.0001,129.02,129.01,37.21249287]
[1742196814624,0.0001,129.02,129.01,349.21249287]
[1742196817322,0.0001,129.02,129.01,18.27852087]
[1742196824822,0.0001,129.02,129.0,0.063]
[1742196825519,0.0001,129.02,129.01,10.52722087]
[1742196826130,0.0001,129.02,129.01,18.27852087]
[1742196836622,0.0001,129.02,129.01,330.27852087]
[1742196838739,0.0001,129.02,129.01,349.21249287]
[1742196842049,0.03,129.08,129.04,17.26722087]
[1742196842221,0.03,129.08,129.04,45.01662087]
[1742196842742,10.55722087,129.08,129.04,26.74]
[1742196843040,10.55722087,129.08,129.04,27.7495]
[1742196843632,10.55722087,129.08,129.04,20.0]
[1742196843949,10.55722087,129.08,129.04,27.7494]
[1742196844245,10.55722087,129.08,129.04,38.27662087]
[1742196844246,0.03,129.08,129.04,38.27662087]
[1742196849027,0.03,129.08,129.05,10.52722087]
[1742196849227,0.03,129.08,129.06,10.52722087]
[1742196849430,0.03,129.08,129.07,10.52722087]
[1742196849630,0.03,129.08,129.07,18.27492087]
[1742196852135,0.03,129.08,129.06,18.27522087]
[1742196853337,0.03,129.08,129.05,18.27602087]
[1742196853549,0.03,129.08,129.04,38.27652087]
[1742196855531,0.03,129.08,129.04,350.27652087]
[1742196856747,0.03,129.08,129.05,18.27592087]
[1742196857044,0.03,129.08,129.05,10.52722087]
[1742196857450,0.03,129.08,129.04,350.27642087]
[1742196858150,0.03,129.08,129.05,10.52722087]
[1742196858336,0.03,129.08,129.05,18.27592087]
[1742196859249,0.03,129.08,129.06,10.52722087]
[1742196861658,0.03,129.08,129.07,18.27492087]
[1742196865467,0.6995834,129.09,129.08,0.28432314]
[1742196865759,8.34e-05,129.09,129.08,29.46119287]
[1742196866258,8.34e-05,129.1,129.08,29.46119287]
[1742196866444,8.34e-05,129.1,129.09,43.94769287]
[1742196867558,0.03,129.14,129.12,20.0]
[1742196867851,0.03,129.14,129.13,10.52722087]
[1742196868551,0.03,129.14,129.13,18.27132087]
[1742196869958,0.03,129.14,129.13,43.94529287]
[1742196870958,0.03,129.14,129.13,355.94529287]
[1742196871551,0.03,129.14,129.13,43.94529287]
[1742196873460,0.0001,129.15,129.13,43.94529287]
[1742196873664,0.04849124,129.16,129.15,18.933972]
[1742196873854,0.04849124,129.16,129.15,29.46119287]
[1742196874469,0.04849124,129.16,129.15,341.46119287]
[1742196874761,1.617,129.21,129.18,20.0]
[1742196874948,1.617,129.21,129.19,10.52722087]
[1742196875744,1.617,129.21,129.18,30.52722087]
[1742196875940,19.88352087,129.21,129.18,20.0]
[1742196876149,19.88352087,129.21,129.16,10.52722087]
[1742196876453,19.88352087,129.21,129.14,10.52722087]
[1742196876454,10.52722087,129.19,129.14,10.52722087]
[1742196876965,10.52722087,129.2,129.15,10.52722087]
[1742196877158,10.52722087,129.2,129.13,14.4839]
[1742196877345,25.93612087,129.18,129.13,10.52722087]
[1742196877669,10.52722087,129.16,129.11,18.27222087]
[1742196878259,10.52722087,129.16,129.11,10.52722087]
[1742196878762,12.13032087,129.15,129.1,10.59022087]
[1742196879447,7.7435,129.14,129.1,10.59022087]
[1742196880469,19.87342087,129.15,129.1,10.59022087]
[1742196880764,9.3462,129.15,129.11,10.52722087]
[1742196881867,19.87342087,129.15,129.1,10.59022087]
[1742196882249,1.6031,129.15,129.11,10.52722087]
[1742196882561,1.6031,129.15,129.13,10.52722087]
[1742196882750,1.6031,129.15,129.14,10.52722087]
[1742196884261,6.0647,129.18,129.14,18.27072087]
[1742196884456,6.0647,129.18,129.15,10.52722087]
[1742196886146,13.8059,129.18,129.14,10.52722087]
[1742196886345,13.8059,129.18,129.14,18.27062087]
[1742196886761,13.8059,129.18,129.14,10.52722087]
[1742196887077,10.52722087,129.17,129.12,10.52722087]
[1742196887366,10.52722087,129.17,129.12,18.27172087]
[1742196887768,10.52722087,129.17,129.12,10.52722087]
[1742196887962,10.52722087,129.17,129.11,10.52722087]
[1742196888264,19.90822087,129.16,129.11,18.27242087]
[1742196888662,9.381,129.16,129.11,18.27242087]
[1742196889047,1.6382,129.16,129.12,10.52722087]
[1742196889370,0.04849124,129.14,129.12,10.52722087]
[1742196890467,0.04849124,129.14,129.12,18.27172087]
[1742196891558,0.04849124,129.14,129.13,10.52722087]
[1742196891952,0.04849124,129.14,129.13,30.52722087]
[1742196896471,0.04849124,129.14,129.13,38.27132087]
[1742196897373,0.04849124,129.14,129.13,30.52722087]
[1742196899971,0.04849124,129.14,129.13,38.27132087]
[1742196901453,0.04849124,129.14,129.13,30.52722087]
[1742196902159,0.04849124,129.14,129.13,20.0]
[1742196903977,0.04849124,129.14,129.13,27.7441]
[1742196904782,0.04849124,129.14,129.13,38.27132087]
[1742196907274,0.04849124,129.14,129.13,20.0]
[1742196911372,0.04849124,129.14,129.13,27.7441]
[1742196911567,0.04849124,129.14,129.13,38.27132087]
[1742196912863,0.04849124,129.14,129.13,27.7441]
[1742196914269,0.04849124,129.14,129.13,27.8071]
[1742196915256,0.04849124,129.14,129.13,20.063]
[1742196915876,0.04849124,129.14,129.13,0.063]
[1742196916180,0.04849124,129.14,129.13,20.063]
[1742196919465,0.04849124,129.14,129.13,27.8071]
[1742196920572,0.04849124,129.14,129.13,38.33432087]
[1742196926171,0.04849124,129.14,129.13,0.063]
[1742196926803,10.57571211,129.14,129.13,0.063]
[1742196928396,18.31921211,129.14,129.13,0.063]
[1742196933506,0.28432314,129.13,129.11,0.063]
[1742196933706,10.52722087,129.12,129.11,0.063]
[1742196934503,29.46119287,129.12,129.11,0.063]
[1742196934894,15.63959124,129.14,129.11,0.063]
[1742196935206,10.52722087,129.13,129.11,0.063]
[1742196937110,15.63959124,129.14,129.11,0.063]
[1742196937326,10.52722087,129.13,129.11,0.063]
[1742196937826,1.69699124,129.14,129.11,10.59022087]
[1742196937989,0.04849124,129.14,129.13,10.52722087]
[1742196940010,0.04849124,129.14,129.13,18.27132087]
[1742196946996,9.124e-05,129.14,129.13,37.20529287]
[1742196947396,9.124e-05,129.14,129.13,349.20529287]
[1742196949605,0.03,129.15,129.13,349.20529287]
[1742196949800,0.03,129.15,129.14,10.52722087]
[1742196951730,0.03,129.15,129.14,18.27072087]
[1742196952925,0.03,129.15,129.14,330.27072087]
[1742196954319,0.03,129.21,129.2,18.26712087]
[1742196955228,0.03,129.21,129.2,7.7399]
[1742196955606,0.03,129.21,129.19,18.26752087]
[1742196956119,0.03,129.21,129.19,10.52722087]
[1742196956430,0.03,129.21,129.19,312.0]
[1742196956634,0.03,129.21,129.18,38.26812087]
[1742196958109,0.03,129.21,129.19,10.52722087]
[1742196958737,0.03,129.21,129.19,18.26752087]
[1742196959352,0.03,129.21,129.18,38.26802087]
[1742196960922,0.03,129.21,129.19,18.26752087]
[1742196961627,0.03,129.21,129.2,10.52722087]
[1742196963041,0.03,129.21,129.2,18.26712087]
[1742196963446,0.03,129.21,129.2,24.98712087]
[1742196963744,0.03,129.21,129.2,43.92109287]
[1742196963933,2.174,129.25,129.21,18.933972]
[1742196964120,2.174,129.25,129.24,10.52722087]
[1742196964538,2.174,129.25,129.23,10.52722087]
[1742196967341,7.7381,129.23,129.19,10.52722087]
[1742196968241,7.7381,129.23,129.2,10.02722087]
[1742196969041,18.26472087,129.24,129.19,10.52722087]
[1742196969246,24.49092087,129.24,129.19,10.52722087]
[1742196969432,13.9637,129.24,129.2,10.52722087]
[1742196969632,7.7375,129.24,129.21,10.52722087]
[1742196970841,7.7375,129.24,129.2,10.52722087]
[1742196971045,37.60852087,129.24,129.19,10.52722087]
[1742196971819,10.52722087,129.23,129.18,10.52722087]
[1742196972945,7.7387,129.22,129.18,10.52722087]
[1742196973242,1.6305,129.21,129.17,16.38956862]
[1742196974252,9.3703,129.21,129.17,16.38956862]
[1742196975030,16.38956862,129.2,129.15,16.38956862]
[1742196975228,16.38956862,129.2,129.16,0.063]
[1742196980249,16.38956862,129.17,129.16,0.063]
[1742196980454,30.33586862,129.18,129.16,0.063]
[1742196981437,16.38956862,129.17,129.16,0.063]
[1742196981646,17.97916862,129.17,129.16,0.063]
[1742196981964,25.72086862,129.17,129.16,0.063]
[1742196983041,93.77484062,129.17,129.13,0.063]
[1742196983359,16.38956862,129.14,129.13,0.063]
[1742196984159,24.13306862,129.14,129.13,0.063]
[1742196984340,31.92786862,129.14,129.13,0.063]
[1742196986745,32.21219176,129.14,129.13,0.063]
[1742196987648,31.92786862,129.14,129.13,0.063]
[1742196988860,7.7948,129.14,129.13,0.063]
[1742196989064,24.18436862,129.18,129.13,16.45256862]
[1742196989262,7.7948,129.18,129.14,16.38956862]
[1742196989644,1.5896,129.18,129.14,16.38956862]
[1742196990966,1.5896,129.18,129.14,24.13296862]
[1742196991351,24.12956862,129.2,129.15,16.38956862]
[1742196991546,9.3591,129.21,129.17,16.38956862]
[1742196992866,25.74866862,129.21,129.16,24.13156862]
[1742196994552,16.38956862,129.2,129.15,24.13216862]
[1742196995752,25.74866862,129.21,129.16,16.38956862]
[1742196997974,25.74866862,129.21,129.16,24.13146862]
[1742196999081,25.74866862,129.21,129.16,16.38956862]
[1742196999569,16.38956862,129.2,129.15,24.13216862]
[1742197000478,24.12946862,129.2,129.15,24.13216862]
[1742197002275,29.31476862,129.24,129.15,24.13216862]
[1742197002276,2.174,129.25,129.23,18.933972]
[1742197002572,2.174,129.25,129.24,16.38956862]
[1742197005282,2.174,129.25,129.24,24.12706862]
[1742197005577,2.174,129.25,129.24,33.288172]
[1742197005779,2.174,129.25,129.24,66.06730924]
[1742197005970,0.03,129.27,129.26,20.0]
[1742197006167,0.03,129.27,129.26,44.12586862]
[1742197007480,0.03,129.27,129.26,63.05984062]
[1742197008356,0.03,129.27,129.26,43.18956862]
[1742197008561,0.03,129.27,129.26,355.18956862]
[1742197009774,0.03,129.27,129.26,43.18956862]
[1742197009973,0.03,129.27,129.24,6.6167]
[1742197010277,0.03,129.27,129.25,16.38956862]
[1742197011901,0.03,129.27,129.25,16.45256862]
[1742197013076,0.03,129.27,129.26,16.38956862]
[1742197016173,0.03,129.27,129.26,24.12586862]
[1742197016690,0.03,129.27,129.26,16.38956862]
[1742197018588,0.03,129.27,129.25,0.063]
[1742197019411,0.03,129.27,129.25,16.45256862]
[1742197019982,0.03,129.27,129.26,16.38956862]
[1742197020492,0.03,129.27,129.25,0.063]
[1742197020697,0.03,129.27,129.25,16.45256862]
[1742197020897,0.03,129.27,129.26,16.38956862]
[1742197021997,0.03,129.27,129.25,0.063]
[1742197022180,18.01446862,129.27,129.25,0.063]
[1742197022590,25.75056862,129.27,129.25,0.063]
[1742197024205,16.38956862,129.26,129.25,0.063]
[1742197024586,24.12586862,129.26,129.25,0.063]
[1742197026997,24.41019176,129.26,129.25,0.0001]
[1742197027198,0.28432314,129.25,129.17,16.38956862]
[1742197027397,16.38956862,129.22,129.17,16.38956862]
[1742197029086,7.7393,129.21,129.17,16.38956862]
[1742197032003,9.3875,129.21,129.16,16.38956862]
[1742197033487,9.3875,129.21,129.17,16.38956862]
[1742197033887,1.6482,129.21,129.18,16.38956862]
[1742197034104,9.3875,129.21,129.18,16.38956862]
[1742197034297,9.3875,129.21,129.17,16.38956862]
[1742197035310,1.6482,129.21,129.17,16.38956862]
[1742197036319,1.5624,129.24,129.2,16.38956862]
[1742197038107,1.5624,129.24,129.2,24.12926862]
[1742197038298,1.5624,129.24,129.22,16.38956862]
[1742197038492,1.5624,129.24,129.21,16.38956862]
[1742197040215,1.5624,129.24,129.21,24.12836862]
[1742197041719,1.5624,129.24,129.22,16.38956862]
[1742197042417,16.38956862,129.26,129.22,16.38956862]
[1742197043713,24.12606862,129.26,129.22,16.38956862]